Workbook

Sheet Rechnen
A1: Indexberechnung | B1: Datum: | C1: =TODAY() -> 2020-03-27
A2: gem. VPI …….
A3: Statistik Austria
A6: Vermieter:
A7: Mieter:
A10: Ausgangsbasis
A11: alter Index: | B11: ='VPI 2015'!B9 -> 105.5 | C11: Jänner 2019
A12: neuer Index: | B12: ='VPI 2015'!B10 -> 107.6 | C12: Jänner 2020
A13: % Punkte: | B13: =ROUND((B12-B11)/B11*100,1) -> 2.0 | C13: % Steigerung
B15: Wohnung | C15: Inventar | D15: PKW-Stellplatz
A16: alte Miete netto: | B16: € 400.00 | C16: € 20.00 | D16: € 50.00
A17: % Erhöhung: | B17: =B16/100*B13 -> € 8.00 | C17: =C16/100*B13 -> € 0.40 | D17: =D16/100*B13 -> € 1.00
A18: neue Miete netto: | B18: =SUM(B16:B17) -> € 408.00 | C18: =SUM(C16:C17) -> € 20.40 | D18: =SUM(D16:D17) -> € 51.00
A19: USt 10% bzw. 20% | B19: =B18/100*10 -> € 40.80 | C19: =C18/100*10 -> € 2.04 | D19: =D18/100*20 -> € 10.20
A20: Neue Miete brutto | B20: =SUM(B18:B19) -> € 448.80 | C20: =SUM(C18:C19) -> € 22.44 | D20: =SUM(D18:D19) -> € 61.20
A23: Mietzins gesamt: | B23: =B20+C20+D20 -> € 532.44

Sheet VPI 2015
A1: INDEX der VERBRAUCHERPREISE (Durchschnitt 2010 = 100)
A2: herausgegeben von Statistik Österreich
A3: VPI 2015 | N3: Jahres-
N4: durch-
A5: Jahr | B5: Jan | C5: Feb | D5: Mrz | E5: Apr | F5: Mai | G5: Jun | H5: Jul | I5: Aug | J5: Sep | K5: Okt | L5: Nov | M5: Dez | N5: schnitt:
A6: 2016 | B6: 99.8 | C6: 99.9 | D6: 100.7 | E6: 100.7 | F6: 101.0 | G6: 101.1 | H6: 100.7 | I6: 100.5 | J6: 101.2 | K6: 101.5 | L6: 101.6 | M6: 102.1 | N6: 100.9
A7: 2017 | B7: 101.8 | C7: 102.1 | D7: 102.6 | E7: 102.8 | F7: 102.9 | G7: 103.0 | H7: 102.7 | I7: 102.6 | J7: 103.6 | K7: 103.7 | L7: 103.9 | M7: 104.3 | N7: 103.0
A8: 2018 | B8: 103.6 | C8: 103.9 | D8: 104.5 | E8: 104.7 | F8: 104.9 | G8: 105.1 | H8: 104.9 | I8: 104.9 | J8: 105.7 | K8: 106.0 | L8: 106.2 | M8: 106.3 | N8: 105.1
A9: 2019 | B9: 105.5 | C9: 105.5 | D9: 106.4 | E9: 106.5 | F9: 106.7 | G9: 106.8 | H9: 106.4 | I9: 106.5 | J9: 107.0 | K9: 107.2 | L9: 107.4 | M9: 108.1
A10: 2020 | B10: 107.6

Sheet VPI 2010
A1: INDEX der VERBRAUCHERPREISE (Durchschnitt 2010 = 100)
A2: herausgegeben von Statistik Österreich
A3: VPI 2010 | N3: Jahres-
N4: durch-
A5: Jahr | B5: Jan | C5: Feb | D5: Mrz | E5: Apr | F5: Mai | G5: Jun | H5: Jul | I5: Aug | J5: Sep | K5: Okt | L5: Nov | M5: Dez | N5: schnitt:
A6: 2011 | B6: 101.0 | C6: 101.7 | D6: 102.9 | E6: 103.4 | F6: 103.5 | G6: 103.5 | H6: 103.3 | I6: 103.5 | J6: 103.9 | K6: 104.0 | L6: 104.1 | M6: 104.3 | N6: 103.3
A7: 2012 | B7: 103.8 | C7: 104.3 | D7: 105.4 | E7: 105.8 | F7: 105.7 | G7: 105.8 | H7: 105.5 | I7: 105.8 | J7: 106.7 | K7: 106.9 | L7: 107.0 | M7: 107.2 | N7: 105.8
A8: 2013 | B8: 106.6 | C8: 106.9 | D8: 107.8 | E8: 107.9 | F8: 108.1 | G8: 108.1 | H8: 107.6 | I8: 107.7 | J8: 108.5 | K8: 108.4 | L8: 108.5 | M8: 109.2 | N8: 107.9
A9: 2014 | B9: 108.3 | C9: 108.5 | D9: 109.6 | E9: 109.7 | F9: 110.0 | G9: 110.1 | H9: 109.5 | I9: 109.5 | J9: 110.2 | K9: 110.1 | L9: 110.3 | M9: 110.3 | N9: 109.7
A10: 2015 | B10: 109.1 | C10: 109.4 | D10: 110.7 | E10: 110.8 | F10: 111.1 | G10: 111.2 | H10: 110.8 | I10: 110.6 | J10: 111.0 | K10: 110.9 | L10: 111.0 | M10: 111.4 | N10: 110.7
A11: 2016 | B11: 110.5 | C11: 110.6 | D11: 111.5 | E11: 111.5 | F11: 111.8 | G11: 111.9 | H11: 111.5 | I11: 111.3 | J11: 112.0 | K11: 112.4 | L11: 112.5 | M11: 113.0 | N11: 111.7
A12: 2017 | B12: 112.7 | C12: 113.0 | D12: 113.6 | E12: 113.8 | F12: 113.9 | G12: 114.0 | H12: 113.7 | I12: 113.6 | J12: 114.7 | K12: 114.8 | L12: 115.0 | M12: 115.5 | N12: 114.0
A13: 2018 | B13: 114.7 | C13: 115.0 | D13: 115.7 | E13: 115.9 | F13: 116.1 | G13: 116.3 | H13: 116.1 | I13: 116.1 | J13: 117.0 | K13: 117.3 | L13: 117.6 | M13: 117.7 | N13: 116.3
A14: 2019 | B14: 116.8 | C14: 116.8 | D14: 117.8 | E14: 117.9 | F14: 118.1 | G14: 118.2 | H14: 117.8 | I14: 117.9 | J14: 118.4 | K14: 118.7 | L14: 118.9 | M14: 119.7
A15: 2020 | B15: 119.1

Sheet VPI 2005
A1: INDEX der VERBRAUCHERPREISE (Durchschnitt 2005 = 100)
A2: herausgegeben von Statistik Österreich
A3: VPI 2005 | N3: Jahres-
N4: durch-
A5: Jahr | B5: Jan | C5: Feb | D5: Mrz | E5: Apr | F5: Mai | G5: Jun | H5: Jul | I5: Aug | J5: Sep | K5: Okt | L5: Nov | M5: Dez | N5: schnitt:
A6: 2006 | B6: 100.4 | C6: 100.7 | D6: 101.0 | E6: 101.5 | F6: 101.6 | G6: 101.7 | H6: 101.6 | I6: 101.9 | J6: 101.7 | K6: 101.6 | L6: 101.7 | M6: 102.0 | N6: 101.5
A7: 2007 | B7: 102.0 | C7: 102.4 | D7: 102.8 | E7: 103.3 | F7: 103.6 | G7: 103.7 | H7: 103.6 | I7: 103.6 | J7: 103.8 | K7: 104.4 | L7: 104.9 | M7: 105.7 | N7: =SUM(B7:M7)/12 -> 103.7
A8: 2008 | B8: 105.3 | C8: 105.6 | D8: 106.4 | E8: 106.7 | F8: 107.4 | G8: 107.7 | H8: 107.6 | I8: 107.4 | J8: 107.7 | K8: 107.6 | L8: 107.3 | M8: 107.1 | N8: 107.0
A9: 2009 | B9: 106.6 | C9: 107.0 | D9: 107.2 | E9: 107.4 | F9: 107.7 | G9: 107.6 | H9: 107.3 | I9: 107.7 | J9: 107.8 | K9: 107.8 | L9: 108.0 | M9: 108.2 | N9: 107.5
A10: 2010 | B10: 107.9 | C10: 108.1 | D10: 109.3 | E10: 109.6 | F10: 109.7 | G10: 109.7 | H10: 109.3 | I10: 109.5 | J10: 109.8 | K10: 110.1 | L10: 110.0 | M10: 110.7 | N10: 109.5
A11: 2011 | B11: 110.6 | C11: 111.4 | D11: 112.7 | E11: 113.2 | F11: 113.3 | G11: 113.3 | H11: 113.1 | I11: 113.3 | J11: 113.8 | K11: 113.9 | L11: 114.0 | M11: 114.2 | N11: 113.1
A12: 2012 | B12: 113.7 | C12: 114.2 | D12: 115.4 | E12: 115.9 | F12: 115.7 | G12: 115.9 | H12: 115.5 | I12: 115.9 | J12: 116.8 | K12: 117.1 | L12: 117.2 | M12: 117.4 | N12: 115.9
A13: 2013 | B13: 116.7 | C13: 117.1 | D13: 118.0 | E13: 118.4 | F13: 118.4 | G13: 118.4 | H13: 117.8 | I13: 117.9 | J13: 118.8 | K13: 118.7 | L13: 118.8 | M13: 119.6 | N13: 118.2
A14: 2014 | B14: 118.6 | C14: 118.8 | D14: 120.0 | E14: 120.1 | F14: 120.5 | G14: 120.6 | H14: 119.9 | I14: 119.9 | J14: 120.7 | K14: 120.6 | L14: 120.8 | M14: 120.8 | N14: 120.1
A15: 2015 | B15: 119.5 | C15: 119.8 | D15: 121.1 | E15: 121.3 | F15: 121.7 | G15: 121.8 | H15: 121.3 | I15: 121.1 | J15: 121.5 | K15: 121.4 | L15: 121.5 | M15: 122.0 | N15: 121.2
A16: 2016 | B16: 121.0 | C16: 121.1 | D16: 122.0 | E16: 122.0 | F16: 122.4 | G16: 122.5 | H16: 122.0 | I16: 121.8 | J16: 122.7 | K16: 123.0 | L16: 123.1 | M16: 123.7 | N16: 122.3
A17: 2017 | B17: 123.4 | C17: 123.7 | D17: 124.4 | E17: 124.6 | F17: 124.7 | G17: 124.8 | H17: 124.5 | I17: 124.4 | J17: 125.6 | K17: 125.7 | L17: 125.9 | M17: 126.4 | N17: 124.8
A18: 2018 | B18: 125.6 | C18: 125.9 | D18: 126.7 | E18: 126.9 | F18: 127.1 | G18: 127.4 | H18: 127.1 | I18: 127.1 | J18: 128.1 | K18: 128.5 | L18: 128.7 | M18: 128.8 | N18: 127.3
A19: 2019 | B19: 127.9 | C19: 127.9 | D19: 129.0 | E19: 129.1 | F19: 129.3 | G19: 129.4 | H19: 129.0 | I19: 129.1 | J19: 129.7 | K19: 129.9 | L19: 130.2 | M19: 131.0
A20: 2020 | B20: 130.4

Sheet 2000
A1: LEBENSHALTUNGSKOSTENINDEX 2000
A2: herausgegeben vom Amt der Vorarlberger Landesregierung
N3: Jahres-
N4: durch-
A5: Jahr | B5: Jan | C5: Feb | D5: Mrz | E5: Apr | F5: Mai | G5: Jun | H5: Jul | I5: Aug | J5: Sep | K5: Okt | L5: Nov | M5: Dez | N5: schnitt:
A6: 2001 | B6: 101.3 | C6: 101.8 | D6: 101.8 | E6: 102.2 | F6: 102.6 | G6: 102.8 | H6: 103.1 | I6: 102.8 | J6: 102.7 | K6: 102.7 | L6: 102.3 | M6: 102.8 | N6: 102.4
A7: 2002 | B7: 103.6 | C7: 103.7 | D7: 103.8 | E7: 104.3 | F7: 104.5 | G7: 104.6 | H7: 104.9 | I7: 104.9 | J7: 104.6 | K7: 104.7 | L7: 104.4 | M7: 104.7 | N7: 104.4
A8: 2003 | B8: 105.4 | C8: 105.8 | D8: 106.0 | E8: 105.8 | F8: 105.6 | G8: 105.6 | H8: 106.3 | I8: 106.5 | J8: 106.5 | K8: 106.1 | L8: 106.0 | M8: 106.5 | N8: 106.0
A9: 2004 | B9: 106.9 | C9: 107.2 | D9: 107.4 | E9: 107.5 | F9: 107.9 | G9: 108.4 | H9: 108.5 | I9: 108.7 | J9: 108.1 | K9: 108.2 | L9: 108.1 | M9: 108.6 | N9: 108.0
A10: 2005 | B10: 108.9 | C10: 109.6 | D10: 110.0 | E10: 110.0 | F10: 110.2 | G10: 110.6 | H10: 111.0 | I10: 111.0 | J10: 111.2 | K10: 111.0 | L10: 110.8 | M10: 111.1 | N10: 110.5
A11: 2006 | B11: 110.9 | C11: 111.3 | D11: 111.6 | E11: 112.2 | F11: 112.3 | G11: 112.4 | H11: 112.3 | I11: 112.6 | J11: 112.4 | K11: 112.3 | L11: 112.4 | M11: 112.7 | N11: 112.1
A12: 2007 | B12: 112.70 | C12: 113.2 | D12: 113.6 | E12: 114.1 | F12: 114.5 | G12: 114.6 | H12: 114.5 | I12: 114.5 | J12: 114.7 | K12: 115.4 | L12: 115.9 | M12: 116.8 | N12: =SUM(B12:M12)/12 -> 114.5
A13: 2008 | B13: 116.4 | C13: 116.7 | D13: 117.6 | E13: 117.9 | F13: 118.7 | G13: 119.0 | H13: 118.9 | I13: 118.7 | J13: 119.0 | K13: 118.9 | L13: 118.6 | M13: 118.3 | N13: 118.2
A14: 2009 | B14: 117.8 | C14: 118.2 | D14: 118.5 | E14: 118.7 | F14: 119.0 | G14: 118.9 | H14: 118.6 | I14: 119.0 | J14: 119.1 | K14: 119.1 | L14: 119.3 | M14: 119.6 | N14: 118.8
A15: 2010 | B15: 119.2 | C15: 119.5 | D15: 120.8 | E15: 121.1 | F15: 121.2 | G15: 121.2 | H15: 120.8 | I15: 121.0 | J15: 121.3 | K15: 121.7 | L15: 121.6 | M15: 122.3 | N15: 121
A16: 2011 | B16: 122.2 | C16: 123.1 | D16: 124.5 | E16: 125.1 | F16: 125.2 | G16: 125.2 | H16: 125.0 | I16: 125.2 | J16: 125.7 | K16: 125.8 | L16: 126.0 | M16: 126.2 | N16: 124.9
A17: 2012 | B17: 125.6 | C17: 126.2 | D17: 127.5 | E17: 128.0 | F17: 127.9 | G17: 128.0 | H17: 127.7 | I17: 128.0 | J17: 129.1 | K17: 129.3 | L17: 129.5 | M17: 129.7 | N17: 128
A18: 2013 | B18: 129.0 | C18: 129.3 | D18: 130.4 | E18: 130.6 | F18: 130.8 | G18: 130.8 | H18: 130.2 | I18: 130.3 | J18: 131.3 | K18: 131.2 | L18: 131.3 | M18: 132.1 | N18: 130.6
A19: 2014 | B19: 131.0 | C19: 131.3 | D19: 132.6 | E19: 132.7 | F19: 133.1 | G19: 133.2 | H19: 132.5 | I19: 132.5 | J19: 133.3 | K19: 133.2 | L19: 133.5 | M19: 133.5 | N19: 132.7
A20: 2015 | B20: 132.0 | C20: 132.4 | D20: 133.9 | E20: 134.1 | F20: 134.4 | G20: 134.6 | H20: 134.1 | I20: 133.8 | J20: 134.3 | K20: 134.2 | L20: 134.3 | M20: 134.8 | N20: 133.9
A21: 2016 | B21: 133.6 | C21: 133.8 | D21: 134.8 | E21: 134.8 | F21: 135.2 | G21: 135.4 | H21: 134.8 | I21: 134.6 | J21: 135.5 | K21: 135.9 | L21: 136.0 | M21: 136.7 | N21: 135.1
A22: 2017 | B22: 136.3 | C22: 136.7 | D22: 137.4 | E22: 137.6 | F22: 137.8 | G22: 137.9 | H22: 137.5 | I22: 137.4 | J22: 138.7 | K22: 138.9 | L22: 139.1 | M22: 139.7 | N22: 137.9
A23: 2018 | B23: 138.7 | C23: 139.1 | D23: 139.9 | E23: 140.2 | F23: 140.5 | G23: 140.7 | H23: 140.5 | I23: 140.5 | J23: 141.5 | K23: 141.9 | L23: 142.2 | M23: 142.3
A24: 2019 | B24: 141.3 | C24: 141.3 | D24: 142.5 | E24: 142.6 | F24: 142.9 | G24: 143.0 | H24: 142.5 | I24: 142.6 | J24: 143.3 | K24: 143.5 | L24: 143.8 | M24: 144.7
A25: 2020 | B25: 144.1

Sheet 1996
A1: LEBENSHALTUNGSKOSTENINDEX 1996
A2: herausgegeben vom Amt der Vorarlberger Landesregierung
N3: Jahres-
N4: durch-
A5: Jahr | B5: Jan | C5: Feb | D5: Mrz | E5: Apr | F5: Mai | G5: Jun | H5: Jul | I5: Aug | J5: Sep | K5: Okt | L5: Nov | M5: Dez | N5: schnitt:
A6: 1997 | B6: 101.0 | C6: 101.3 | D6: 101.3 | E6: 101.3 | F6: 101.3 | G6: 101.4 | H6: 101.5 | I6: 101.8 | J6: 101.6 | K6: 101.8 | L6: 101.6 | M6: 102.2 | N6: 101.5
A7: 1998 | B7: 102.6 | C7: 102.8 | D7: 102.9 | E7: 102.8 | F7: 102.7 | G7: 102.6 | H7: 102.9 | I7: 102.7 | J7: 102.8 | K7: 102.8 | L7: 102.8 | M7: 103.0 | N7: 102.8
A8: 1999 | B8: 103.3 | C8: 103.4 | D8: 103.3 | E8: 103.4 | F8: 103.4 | G8: 103.4 | H8: 103.6 | I8: 103.7 | J8: 103.4 | K8: 104.0 | L8: 104.1 | M8: 105.1 | N8: 103.7
A9: 2000 | B9: 105.1 | C9: 105.4 | D9: 105.6 | E9: 105.6 | F9: 105.7 | G9: 106.7 | H9: 106.9 | I9: 106.8 | J9: 107.3 | K9: 107.4 | L9: 107.7 | M9: 108.4 | N9: 106.6
A10: 2001 | B10: 108.0 | C10: 108.5 | D10: 108.5 | E10: 108.9 | F10: 109.4 | G10: 109.6 | H10: 109.9 | I10: 109.6 | J10: 109.5 | K10: 109.5 | L10: 109.1 | M10: 109.6 | N10: 109.2
A11: 2002 | B11: 110.4 | C11: 110.5 | D11: 110.7 | E11: 111.2 | F11: 111.4 | G11: 111.5 | H11: 111.8 | I11: 111.8 | J11: 111.5 | K11: 111.6 | L11: 111.3 | M11: 111.6 | N11: 111.3
A12: 2003 | B12: 112.4 | C12: 112.8 | D12: 113.0 | E12: 112.8 | F12: 112.6 | G12: 112.9 | H12: 113.3 | I12: 113.5 | J12: 113.2 | K12: 113.1 | L12: 113.0 | M12: 113.5 | N12: 113.0
A13: 2004 | B13: 114.0 | C13: 114.3 | D13: 114.5 | E13: 114.6 | F13: 115.0 | G13: 115.6 | H13: 115.7 | I13: 115.9 | J13: 115.2 | K13: 115.3 | L13: 115.2 | M13: 115.8 | N13: 115.1
A14: 2005 | B14: 116.1 | C14: 116.8 | D14: 117.3 | E14: 117.3 | F14: 117.5 | G14: 117.9 | H14: 118.3 | I14: 118.3 | J14: 118.5 | K14: 118.2 | L14: 118.1 | M14: 118.4 | N14: 117.7
A15: 2006 | B15: 118.2 | C15: 118.5 | D15: 118.9 | E15: 119.5 | F15: 119.6 | G15: 119.7 | H15: 119.6 | I15: 119.9 | J15: 119.7 | K15: 119.6 | L15: 119.7 | M15: 120.1 | N15: 119.4
A16: 2007 | B16: 120.1 | C16: 120.5 | D16: 121.0 | E16: 121.6 | F16: 121.9 | G16: 122.1 | H16: 121.9 | I16: 121.9 | J16: 122.2 | K16: 122.9 | L16: 123.5 | M16: 124.4 | N16: =SUM(B16:M16)/12 -> 122.0
A17: 2008 | B17: 123.9 | C17: 124.3 | D17: 125.2 | E17: 125.6 | F17: 126.4 | G17: 126.8 | H17: 126.6 | I17: 126.4 | J17: 126.8 | K17: 126.6 | L17: 126.3 | M17: 126.1 | N17: 125.9
A18: 2009 | B18: 125.5 | C18: 125.9 | D18: 126.2 | E18: 126.4 | F18: 126.8 | G18: 126.6 | H18: 126.3 | I18: 126.8 | J18: 126.9 | K18: 126.9 | L18: 127.1 | M18: 127.4 | N18: 126.6
A19: 2010 | B19: 127.0 | C19: 127.2 | D19: 128.6 | E19: 129.0 | F19: 129.1 | G19: 129.1 | H19: 128.6 | I19: 128.9 | J19: 129.2 | K19: 129.6 | L19: 129.5 | M19: 130.3 | N19: 128.8
A20: 2011 | B20: 130.1 | C20: 131.0 | D20: 132.5 | E20: 133.2 | F20: 133.3 | G20: 133.3 | H20: 133.1 | I20: 133.3 | J20: 133.8 | K20: 134.0 | L20: 134.1 | M20: 134.3 | N20: 133.0
A21: 2012 | B21: 133.7 | C21: 134.3 | D21: 135.8 | E21: 136.3 | F21: 136.1 | G21: 136.3 | H21: 135.9 | I21: 136.6 | J21: 137.4 | K21: 137.7 | L21: 137.8 | M21: 138.1 | N21: 136.3
A22: 2013 | B22: 137.3 | C22: 137.7 | D22: 138.8 | E22: 139.0 | F22: 139.2 | G22: 139.2 | H22: 138.6 | I22: 138.7 | J22: 139.7 | K22: 139.6 | L22: 139.7 | M22: 140.6 | N22: 139.0
A23: 2014 | B23: 139.5 | C23: 139.7 | D23: 141.3 | E23: 141.3 | F23: 141.7 | G23: 141.8 | H23: 141.0 | I23: 141.0 | J23: 141.9 | K23: 141.8 | L23: 142.1 | M23: 142.1 | N23: 141.3
A24: 2015 | B24: 140.5 | C24: 140.9 | D24: 142.6 | E24: 142.7 | F24: 143.1 | G24: 143.2 | H24: 142.7 | I24: 142.5 | J24: 143.0 | K24: 142.8 | L24: 143.0 | M24: 143.5 | N24: 142.5
A25: 2016 | B25: 142.2 | C25: 142.4 | D25: 143.5 | E25: 143.5 | F25: 143.9 | G25: 144.1 | H25: 143.5 | I25: 143.2 | J25: 144.2 | K25: 144.6 | L25: 144.8 | M25: 145.5 | N25: 143.8
A26: 2017 | B26: 145.1 | C26: 145.5 | D26: 146.2 | E26: 146.5 | F26: 146.6 | G26: 146.8 | H26: 146.3 | I26: 146.2 | J26: 147.6 | K26: 147.8 | L26: 148.1 | M26: 148.6 | N26: 146.8
A27: 2018 | B27: 147.6 | C27: 148.1 | D27: 148.9 | E27: 149.2 | F27: 149.5 | G27: 149.8 | H27: 149.5 | I27: 149.5 | J27: 150.6 | K27: 151.1 | L27: 151.3 | M27: 151.5
A28: 2019 | B28: 150.3 | C28: 150.3 | D28: 151.6 | E28: 151.8 | F28: 152.0 | G28: 152.2 | H28: 151.6 | I28: 151.8 | J28: 152.5 | K28: 152.8 | L28: 153.0 | M28: 154.0
A29: 2020 | B29: 153.3

Sheet 1986
A1: LEBENSHALTUNGSKOSTENINDEX 1986
A2: herausgegeben vom Amt der Vorarlberger Landesregierung
N3: Jahres-
N4: durch-
A5: Jahr | B5: Jan | C5: Feb | D5: Mrz | E5: Apr | F5: Mai | G5: Jun | H5: Jul | I5: Aug | J5: Sep | K5: Okt | L5: Nov | M5: Dez | N5: schnitt:
A6: 1987 | B6: 100.4 | C6: 100.6 | D6: 100.8 | E6: 100.8 | F6: 100.7 | G6: 101.3 | H6: 101.5 | I6: 102.1 | J6: 102.0 | K6: 102.4 | L6: 101.8 | M6: 101.7 | N6: 101.3
A7: 1988 | B7: 102.4 | C7: 102.5 | D7: 102.8 | E7: 102.6 | F7: 102.5 | G7: 103.1 | H7: 103.8 | I7: 104.3 | J7: 104.1 | K7: 104.6 | L7: 104.2 | M7: 104.1 | N7: 103.4
A8: 1989 | B8: 104.9 | C8: 105.3 | D8: 105.6 | E8: 105.9 | F8: 106.0 | G8: 106.2 | H8: 107.1 | I8: 107.4 | J8: 107.3 | K8: 107.8 | L8: 107.4 | M8: 107.4 | N8: 106.5
A9: 1990 | B9: 108.5 | C9: 109.0 | D9: 109.0 | E9: 109.2 | F9: 109.4 | G9: 109.5 | H9: 110.4 | I9: 111.0 | J9: 111.8 | K9: 112.4 | L9: 111.8 | M9: 111.6 | N9: 108.5
A10: 1991 | B10: 112.3 | C10: 113.1 | D10: 113.2 | E10: 113.3 | F10: 113.4 | G10: 114.1 | H10: 115.2 | I10: 116.1 | J10: 115.6 | K10: 116.0 | L10: 115.9 | M10: 115.3 | N10: 114.5
A11: 1992 | B11: 117.1 | C11: 117.9 | D11: 118.1 | E11: 117.9 | F11: 118.3 | G11: 118.6 | H11: 119.2 | I11: 119.6 | J11: 119.6 | K11: 120.0 | L11: 119.6 | M11: 119.4 | N11: 118.8
A12: 1993 | B12: 120.9 | C12: 121.3 | D12: 121.9 | E12: 121.6 | F12: 122.0 | G12: 122.2 | H12: 123.2 | I12: 123.3 | J12: 123.2 | K12: 123.8 | L12: 123.4 | M12: 123.3 | N12: 122.5
A13: 1994 | B13: 124.4 | C13: 125.2 | D13: 125.5 | E13: 125.1 | F13: 125.6 | G13: 125.8 | H13: 126.8 | I13: 127.1 | J13: 126.9 | K13: 127.2 | L13: 126.7 | M13: 126.4 | N13: 126.1
A14: 1995 | B14: 127.2 | C14: 127.4 | D14: 127.8 | E14: 127.6 | F14: 128.0 | G14: 128.1 | H14: 128.9 | I14: 129.0 | J14: 128.5 | K14: 128.9 | L14: 128.5 | M14: 128.5 | N14: 128.2
A15: 1996 | B15: 129.6 | C15: 129.9 | D15: 130.3 | E15: 129.7 | F15: 129.5 | G15: 130.1 | H15: 130.8 | I15: 131.3 | J15: 130.7 | K15: 131.4 | L15: 131.2 | M15: 131.3 | N15: 130.5
A16: 1997 | B16: 131.8 | C16: 132.2 | D16: 132.2 | E16: 132.2 | F16: 132.2 | G16: 132.2 | H16: 132.5 | I16: 132.8 | J16: 132.6 | K16: 132.8 | L16: 132.6 | M16: 133.4 | N16: 132.5
A17: 1998 | B17: 133.9 | C17: 134.2 | D17: 134.3 | E17: 134.2 | F17: 134.0 | G17: 133.9 | H17: 134.3 | I17: 134.0 | J17: 134.2 | K17: 134.2 | L17: 134.0 | M17: 134.4 | N17: 134.1
A18: 1999 | B18: 134.8 | C18: 134.9 | D18: 134.8 | E18: 134.9 | F18: 134.9 | G18: 134.9 | H18: 135.2 | I18: 135.3 | J18: 134.9 | K18: 135.7 | L18: 135.9 | M18: 137.2 | N18: 135.5
A19: 2000 | B19: 137.2 | C19: 137.5 | D19: 137.8 | E19: 137.8 | F19: 137.9 | G19: 139.2 | H19: 139.5 | I19: 139.4 | J19: 140.0 | K19: 140.2 | L19: 140.5 | M19: 141.5 | N19: 139.0
A20: 2001 | B20: 140.8 | C20: 141.50 | D20: 141.5 | E20: 142.1 | F20: 142.6 | G20: 142.9 | H20: 143.3 | I20: 142.9 | J20: 142.8 | K20: 142.8 | L20: 142.2 | M20: 142.9 | N20: 142.4
A21: 2002 | B21: 144.0 | C21: 144.1 | D21: 144.3 | E21: 145.0 | F21: 145.3 | G21: 145.4 | H21: 145.8 | I21: 145.8 | J21: 145.4 | K21: 145.5 | L21: 145.1 | M21: 145.5 | N21: 145.1
A22: 2003 | B22: 146.5 | C22: 147.1 | D22: 147.3 | E22: 147.1 | F22: 146.8 | G22: 147.2 | H22: 147.8 | I22: 148.0 | J22: 147.6 | K22: 147.5 | L22: 147.3 | M22: 148.0 | N22: 147.4
A23: 2004 | B23: 148.6 | C23: 149.0 | D23: 149.3 | E23: 149.4 | F23: 150.0 | G23: 150.7 | H23: 150.8 | I23: 151.1 | J23: 150.3 | K23: 150.4 | L23: 150.3 | M23: 151.0 | N23: 150.1
A24: 2005 | B24: 151.4 | C24: 152.3 | D24: 152.9 | E24: 152.9 | F24: 153.2 | G24: 153.7 | H24: 154.3 | I24: 154.3 | J24: 154.6 | K24: 154.3 | L24: 154.0 | M24: 154.4 | N24: 153.5
A25: 2006 | B25: 154.1 | C25: 154.6 | D25: 155.0 | E25: 155.8 | F25: 156.0 | G25: 156.1 | H25: 156.0 | I25: 156.4 | J25: 156.1 | K25: 156.0 | L25: 156.1 | M25: 156.6 | N25: 155.7
A26: 2007 | B26: 156.6 | C26: 157.2 | D26: 157.8 | E26: 158.6 | F26: 159.0 | G26: 159.2 | H26: 159.0 | I26: 159.0 | J26: 159.3 | K26: 160.3 | L26: 161.0 | M26: 162.6 | N26: =SUM(B26:M26)/12 -> 159.1
A27: 2008 | B27: 161.6 | C27: 162.1 | D27: 163.3 | E27: 163.8 | F27: 164.9 | G27: 165.3 | H27: 165.2 | I27: 164.9 | J27: 165.3 | K27: 165.2 | L27: 164.7 | M27: 164.4 | N27: 164.2
A28: 2009 | B28: 163.6 | C28: 164.2 | D28: 164.6 | E28: 164.9 | F28: 165.3 | G28: 165.2 | H28: 164.7 | I28: 165.3 | J28: 165.5 | K28: 165.5 | L28: 165.8 | M28: 166.1 | N28: 165.1
A29: 2010 | B29: 165.6 | C29: 165.9 | D29: 167.8 | E29: 168.2 | F29: 168.4 | G29: 168.4 | H29: 167.8 | I29: 168.1 | J29: 168.5 | K29: 169.0 | L29: 168.9 | M29: 169.9 | N29: 168.0
A30: 2011 | B30: 169.7 | C30: 170.9 | D30: 172.9 | E30: 173.7 | F30: 173.9 | G30: 173.9 | H30: 173.5 | I30: 173.9 | J30: 174.6 | K30: 174.7 | L30: 174.9 | M30: 175.2 | N30: 173.5
A31: 2012 | B31: 174.4 | C31: 175.2 | D31: 177.1 | E31: 177.7 | F31: 177.6 | G31: 177.7 | H31: 177.2 | I31: 177.7 | J31: 179.3 | K31: 179.6 | L31: 179.8 | M31: 180.1 | N31: 177.8
A32: 2013 | B32: 179.1 | C32: 179.6 | D32: 181.1 | E32: 181.3 | F32: 181.6 | G32: 181.6 | H32: 180.8 | I32: 180.9 | J32: 182.3 | K32: 182.1 | L32: 182.3 | M32: 183.5 | N32: 181.4
A33: 2014 | B33: 181.9 | C33: 182.3 | D33: 184.1 | E33: 184.3 | F33: 184.8 | G33: 185.0 | H33: 184.0 | I33: 184.0 | J33: 185.1 | K33: 185.0 | L33: 185.3 | M33: 185.3 | N33: 184.3
A34: 2015 | B34: 183.3 | C34: 183.8 | D34: 186.0 | E34: 186.1 | F34: 186.6 | G34: 186.8 | H34: 186.1 | I34: 185.8 | J34: 186.5 | K34: 186.3 | L34: 186.5 | M34: 187.2 | N34: 185.9
A35: 2016 | B35: 185.5 | C35: 185.7 | D35: 187.2 | E35: 187.2 | F35: 187.8 | G35: 187.9 | H35: 187.2 | I35: 186.8 | J35: 188.1 | K35: 188.7 | L35: 188.9 | M35: 189.8 | N35: 187.6
A36: 2017 | B36: 189.2 | C36: 189.8 | D36: 190.7 | E36: 191.1 | F36: 191.3 | G36: 191.5 | H36: 190.9 | I36: 190.7 | J36: 192.6 | K36: 192.8 | L36: 193.2 | M36: 193.9 | N36: 191.5
A37: 2018 | B37: 192.6 | C37: 193.2 | D37: 194.3 | E37: 194.6 | F37: 195.0 | G37: 195.4 | H37: 195.0 | I37: 195.0 | J37: 196.5 | K37: 197.1 | L37: 197.4 | M37: 197.6
A38: 2019 | B38: 196.1 | C38: 196.1 | D38: 197.8 | E38: 198.0 | F38: 198.4 | G38: 198.5 | H38: 197.8 | I38: 198.0 | J38: 198.9 | K38: 199.3 | L38: 199.7 | M38: 201.0
A39: 2020 | B39: 200.0

Sheet 1976
A1: LEBENSHALTUNGSKOSTENINDEX 1976
A2: herausgegeben vom Amt der Vorarlberger Landesregierung
N3: Jahres-
N4: durch-
A5: Jahr | B5: Jan | C5: Feb | D5: Mrz | E5: Apr | F5: Mai | G5: Jun | H5: Jul | I5: Aug | J5: Sep | K5: Okt | L5: Nov | M5: Dez | N5: schnitt:
A6: 1977 | B6: 103.1 | C6: 103.6 | D6: 103.5 | E6: 104.0 | F6: 104.7 | G6: 105.5 | H6: 106.2 | I6: 106.5 | J6: 106.4 | K6: 106.8 | L6: 105.9 | M6: 106.0 | N6: 105.20
A7: 1978 | B7: 107.2 | C7: 107.8 | D7: 108.0 | E7: 108.2 | F7: 108.3 | G7: 108.7 | H7: 109.2 | I7: 110.0 | J7: 109.5 | K7: 109.6 | L7: 109.6 | M7: 110.0 | N7: 108.80
A8: 1979 | B8: 111.2 | C8: 112.0 | D8: 112.4 | E8: 112.3 | F8: 112.3 | G8: 112.9 | H8: 114.2 | I8: 114.9 | J8: 114.8 | K8: 115.0 | L8: 115.3 | M8: 116.0 | N8: 113.60
A9: 1980 | B9: 117.8 | C9: 118.9 | D9: 119.5 | E9: 120.0 | F9: 120.6 | G9: 122.0 | H9: 122.6 | I9: 123.4 | J9: 123.1 | K9: 123.0 | L9: 122.8 | M9: 123.9 | N9: 121.47
A10: 1981 | B10: 125.9 | C10: 126.8 | D10: 128.5 | E10: 129.2 | F10: 129.0 | G10: 129.5 | H10: 130.4 | I10: 131.2 | J10: 131.6 | K10: 131.9 | L10: 131.9 | M10: 132.2 | N10: 128.84
A11: 1982 | B11: 133.7 | C11: 135.0 | D11: 136.0 | E11: 136.5 | F11: 136.4 | G11: 136.9 | H11: 137.8 | I11: 137.9 | J11: 137.8 | K11: 137.9 | L11: 137.6 | M11: 137.9 | N11: 136.80
A12: 1983 | B12: 138.7 | C12: 139.4 | D12: 139.8 | E12: 139.6 | F12: 139.3 | G12: 140.0 | H12: 104.7 | I12: 141.2 | J12: 141.4 | K12: 142.5 | L12: 142.4 | M12: 143.1 | N12: 140.70
A13: 1984 | B13: 146.9 | C13: 147.4 | D13: 147.8 | E13: 147.6 | F13: 147.9 | G13: 149.0 | H13: 148.9 | I13: 149.9 | J13: 149.6 | K13: 149.9 | L13: 150.3 | M13: 150.3 | N13: 148.80
A14: 1985 | B14: 151.6 | C14: 152.4 | D14: 153.8 | E14: 153.8 | F14: 152.9 | G14: 153.7 | H14: 154.2 | I14: 154.5 | J14: 154.6 | K14: 154.6 | L14: 154.5 | M14: 155.1 | N14: 153.80
A15: 1986 | B15: 156.9 | C15: 156.5 | D15: 156.3 | E15: 155.3 | F15: 155.0 | G15: 155.9 | H15: 156.5 | I15: 156.9 | J15: 156.6 | K15: 156.7 | L15: 155.9 | M15: 156.3 | N15: 156.20
A16: 1987 | B16: 156.8 | C16: 157.1 | D16: 157.4 | E16: 157.4 | F16: 157.3 | G16: 158.2 | H16: 158.5 | I16: 159.5 | J16: 159.3 | K16: 159.9 | L16: 159.0 | M16: 158.9 | N16: 158.30
A17: 1988 | B17: 159.9 | C17: 160.1 | D17: 106.6 | E17: 160.3 | F17: 160.1 | G17: 161.0 | H17: 162.1 | I17: 162.9 | J17: 162.6 | K17: 163.4 | L17: 162.8 | M17: 162.6 | N17: 161.50
A18: 1989 | B18: 163.9 | C18: 164.5 | D18: 164.9 | E18: 165.4 | F18: 165.6 | G18: 165.9 | H18: 167.3 | I18: 167.8 | J18: 167.6 | K18: 168.4 | L18: 167.8 | M18: 167.8 | N18: 166.40
A19: 1990 | B19: 169.5 | C19: 170.3 | D19: 170.3 | E19: 170.6 | F19: 170.9 | G19: 171.0 | H19: 172.4 | I19: 173.4 | J19: 174.6 | K19: 175.6 | L19: 174.6 | M19: 174.3 | N19: 172.30
A20: 1991 | B20: 175.4 | C20: 176.7 | D20: 176.8 | E20: 177.0 | F20: 177.1 | G20: 178.2 | H20: 179.9 | I20: 181.3 | J20: 180.6 | K20: 181.2 | L20: 181.0 | M20: 180.1 | N20: 178.80
A21: 1992 | B21: 182.9 | C21: 184.2 | D21: 184.5 | E21: 184.2 | F21: 184.8 | G21: 185.3 | H21: 186.2 | I21: 186.8 | J21: 186.8 | K21: 187.4 | L21: 186.8 | M21: 186.5 | N21: 186.50
A22: 1993 | B22: 188.8 | C22: 189.5 | D22: 190.4 | E22: 189.9 | F22: 190.6 | G22: 190.9 | H22: 192.4 | I22: 192.6 | J22: 192.4 | K22: 193.4 | L22: 192.8 | M22: 192.6 | N22: 191.40
A23: 1994 | B23: 194.3 | C23: 195.6 | D23: 196.0 | E23: 195.4 | F23: 196.2 | G23: 196.5 | H23: 198.1 | I23: 198.5 | J23: 198.2 | K23: 198.7 | L23: 197.9 | M23: 197.4 | N23: 196.90
A24: 1995 | B24: 198.7 | C24: 199.0 | D24: 199.6 | E24: 199.3 | F24: 199.9 | G24: 200.1 | H24: 201.3 | I24: 201.5 | J24: 200.7 | K24: 201.3 | L24: 200.7 | M24: 200.7 | N24: 200.20
A25: 1996 | B25: 202.4 | C25: 202.9 | D25: 203.5 | E25: 202.6 | F25: 202.3 | G25: 202.3 | H25: 204.3 | I25: 205.1 | J25: 204.2 | K25: 205.2 | L25: 204.9 | M25: 205.1 | N25: 203.80
A26: 1997 | B26: 205.8 | C26: 206.4 | D26: 206.4 | E26: 206.4 | F26: 206.4 | G26: 206.7 | H26: 206.9 | I26: 207.5 | J26: 207.1 | K26: 207.5 | L26: 207.1 | M26: 208.3 | N26: 206.90
A27: 1998 | B27: 209.1 | C27: 209.5 | D27: 209.7 | E27: 209.5 | F27: 209.3 | G27: 209.1 | H27: 209.7 | I27: 209.3 | J27: 209.5 | K27: 209.5 | L27: 209.3 | M27: 209.9 | N27: 209.50
A28: 1999 | B28: 210.5 | C28: 210.7 | D28: 210.5 | E28: 210.7 | F28: 210.7 | G28: 210.7 | H28: 211.1 | I28: 211.3 | J28: 210.7 | K28: 212.0 | L28: 212.2 | M28: 214.2 | N28: 211.30
A29: 2000 | B29: 214.2 | C29: 214.8 | D29: 215.2 | E29: 215.2 | F29: 215.4 | G29: 217.5 | H29: 217.9 | I29: 217.7 | J29: 218.7 | K29: 218.9 | L29: 219.5 | M29: 220.9 | N29: 217.20
A30: 2001 | B30: 220.0 | C30: 221.1 | D30: 221.1 | E30: 222.0 | F30: 222.8 | G30: 223.3 | H30: 223.9 | I30: 223.3 | J30: 223.1 | K30: 223.1 | L30: 222.2 | M30: 223.3 | N30: 222.4
A31: 2002 | B31: 225.0 | C31: 225.2 | D31: 225.5 | E31: 226.5 | F31: 227.0 | G31: 227.2 | H31: 227.8 | I31: 227.8 | J31: 227.2 | K31: 227.4 | L31: 226.8 | M31: 227.4 | N31: 226.7
A32: 2003 | B32: 228.9 | C32: 229.8 | D32: 230.2 | E32: 229.8 | F32: 229.4 | G32: 230.0 | H32: 230.9 | I32: 231.3 | J32: 230.7 | K32: 230.4 | L32: 230.2 | M32: 231.3 | N32: 230.2
A33: 2004 | B33: 232.2 | C33: 232.8 | D33: 233.3 | E33: 233.5 | F33: 234.4 | G33: 235.4 | H33: 235.7 | I33: 236.1 | J33: 234.8 | K33: 235.0 | L33: 234.8 | M33: 235.9 | N33: 234.5
A34: 2005 | B34: 236.5 | C34: 238.1 | D34: 238.9 | E34: 238.9 | F34: 239.4 | G34: 240.2 | H34: 241.1 | I34: 241.1 | J34: 241.5 | K34: 241.1 | L34: 240.7 | M34: 241.3 | N34: 239.9
A35: 2006 | B35: 240.9 | C35: 241.6 | D35: 242.3 | E35: 243.5 | F35: 243.7 | G35: 244.0 | H35: 243.7 | I35: 244.5 | J35: 244.0 | K35: 243.7 | L35: 244.0 | M35: 244.7 | N35: 243.4
A36: 2007 | B36: 244.7 | C36: 245.7 | D36: 246.6 | E36: 247.8 | F36: 248.5 | G36: 248.8 | H36: 248.5 | I36: 248.5 | J36: 249.0 | K36: 250.5 | L36: 251.7 | M36: 253.6 | N36: =SUM(C36:M36)/12 -> 228.3
A37: 2008 | B37: 252.6 | C37: 252.6 | D37: 255.3 | E37: 256.0 | F37: 257.7 | G37: 258.4 | H37: 258.1 | I37: 257.7 | J37: 258.4 | K37: 258.1 | L37: 257.4 | M37: 256.9 | N37: 256.7
A38: 2009 | B38: 255.7 | C38: 256.7 | D38: 257.2 | E38: 257.7 | F38: 258.4 | G38: 258.1 | H38: 257.4 | I38: 258.4 | J38: 258.6 | K38: 258.6 | L38: 259.1 | M38: 259.6 | N38: 258.0
A39: 2010 | B39: 258.9 | C39: 259.3 | D39: 262.2 | E39: 262.9 | F39: 263.2 | G39: 263.2 | H39: 262.2 | I39: 262.7 | J39: 263.4 | K39: 264.1 | L39: 263.9 | M39: 265.6 | N39: 262.6
A40: 2011 | B40: 265.2 | C40: 267.1 | D40: 270.2 | E40: 271.5 | F40: 271.8 | G40: 271.8 | H40: 271.3 | I40: 271.8 | J40: 272.8 | K40: 273.1 | L40: 273.4 | M40: 273.9 | N40: 271.2
A41: 2012 | B41: 272.6 | C41: 273.9 | D41: 276.8 | E41: 277.8 | F41: 277.6 | G41: 277.8 | H41: 277.0 | I41: 277.8 | J41: 280.2 | K41: 280.7 | L41: 281.0 | M41: 281.5 | N41: 277.9
A42: 2013 | B42: 279.9 | C42: 280.7 | D42: 283.1 | E42: 183.3 | F42: 283.9 | G42: 283.9 | H42: 282.6 | I42: 282.8 | J42: 284.9 | K42: 284.7 | L42: 284.9 | M42: 286.8 | N42: 283.5
A43: 2014 | B43: 284.4 | C43: 284.9 | D43: 287.8 | E43: 288.1 | F43: 288.9 | G43: 289.1 | H43: 287.5 | I43: 287.5 | J43: 289.4 | K43: 289.1 | L43: 289.6 | M43: 289.6 | N43: 288.0
A44: 2015 | B44: 286.5 | C44: 287.3 | D44: 290.7 | E44: 291.0 | F44: 291.7 | G44: 292.0 | H44: 291.0 | I44: 290.4 | J44: 291.5 | K44: 291.2 | L44: 291.5 | M44: 292.5 | N44: 290.6
A45: 2016 | B45: 290.0 | C45: 290.3 | D45: 292.6 | E45: 292.6 | F45: 293.5 | G45: 293.8 | H45: 292.6 | I45: 292.1 | J45: 294.1 | K45: 295.0 | L45: 295.2 | M45: 296.7 | N45: 293.2
A46: 2017 | B46: 295.8 | C46: 296.7 | D46: 298.2 | E46: 298.7 | F46: 299.0 | G46: 299.3 | H46: 298.4 | I46: 298.2 | J46: 301.1 | K46: 301.4 | L46: 301.9 | M46: 303.1 | N46: 299.3
A47: 2018 | B47: 301.1 | C47: 301.9 | D47: 303.7 | E47: 304.3 | F47: 304.8 | G47: 305.4 | H47: 304.8 | I47: 304.8 | J47: 307.2 | K47: 308.0 | L47: 308.6 | M47: 308.9
A48: 2019 | B48: 306.6 | C48: 306.6 | D48: 309.2 | E48: 309.5 | F48: 310.1 | G48: 310.4 | H48: 309.2 | I48: 309.1 | J48: 310.9 | K48: 311.5 | L48: 312.1 | M48: 314.1
A49: 2020 | B49: 312.7
